bitfinex-derivatives/quotes_SOLF0:USTF0_20250415
["timestamp","ask_amount","ask_price","bid_price","bid_amount"]
[1744692097498,4.29581145,130.12,130.08,32.35581145]
[1744692097798,7.6878,130.1,130.08,32.35581145]
[1744692097995,7.6878,130.1,130.09,0.05729542]
[1744692098906,7.73711836,130.11,130.09,0.05729542]
[1744692101303,12.03292981,130.11,130.09,0.05729542]
[1744692103507,4.34552981,130.11,130.09,0.05729542]
[1744692103707,0.04971836,130.11,130.09,4.35310687]
[1744692105707,0.04971836,130.11,130.09,0.05729542]
[1744692106506,0.04971836,130.11,130.09,7.74549542]
[1744692107910,0.04971836,130.11,130.1,7.6877]
[1744692110008,0.04971836,130.11,130.09,0.05729542]
[1744692110009,0.04971836,130.11,130.09,12.04120687]
[1744692110209,0.04971836,130.11,130.09,4.35310687]
[1744692111212,0.04971836,130.11,130.1,7.6877]
[1744692112815,0.04971836,130.11,130.09,0.05729542]
[1744692114518,0.04971836,130.11,130.09,7.74559542]
[1744692119719,0.04971836,130.11,130.09,0.05729542]
[1744692119920,12.03282981,130.11,130.09,0.05729542]
[1744692120117,4.34552981,130.11,130.09,0.05729542]
[1744692120314,11.98351145,130.1,130.09,0.05729542]
[1744692121625,4.29581145,130.1,130.09,0.05729542]
[1744692122423,12.03282981,130.11,130.09,0.05729542]
[1744692122620,0.04971836,130.11,130.1,4.29581145]
[1744692123927,0.04971836,130.11,130.1,11.98351145]
[1744692131629,0.04971836,130.11,130.1,4.29581145]
[1744692132932,0.04971836,130.11,130.1,11.98351145]
[1744692143136,4.29581145,130.16,130.15,7.6847]
[1744692143441,4.29581145,130.2,130.15,4.29581145]
[1744692143940,4.29581145,130.2,130.16,4.29581145]
[1744692144139,28.04,130.22,130.15,4.29581145]
[1744692144140,4.29581145,130.19,130.15,4.29581145]
[1744692144338,0.05435275,130.19,130.17,4.35016239]
[1744692144540,0.05435275,130.19,130.17,32.39016239]
[1744692144740,0.05435275,130.19,130.17,40.07356239]
[1744692147440,0.05435275,130.19,130.18,7.683]
[1744692147647,4.1239,130.23,130.18,4.29581145]
[1744692147845,4.1239,130.23,130.2,4.29581145]
[1744692148041,4.1239,130.23,130.2,11.97721145]
[1744692148242,4.1239,130.23,130.2,40.01721145]
[1744692148746,4.1239,130.23,130.2,40.07463919]
[1744692148747,4.18009081,130.23,130.2,40.07463919]
[1744692148944,0.05619081,130.23,130.21,4.29581145]
[1744692149146,0.05619081,130.23,130.22,4.29581145]
[1744692150148,0.05619081,130.23,130.22,11.97641145]
[1744692151351,0.05619081,130.23,130.21,7.681]
[1744692152852,0.05619081,130.23,130.2,40.07483919]
[1744692154554,0.05619081,130.23,130.21,7.6811]
[1744692154754,0.05619081,130.23,130.21,11.97691145]
[1744692154951,0.05619081,130.23,130.22,4.29581145]
[1744692155148,0.05619081,130.23,130.22,11.97641145]
[1744692158651,6.29081145,130.28,130.22,4.29581145]
[1744692158652,1.995,130.28,130.22,4.29581145]
[1744692158953,1.995,130.28,130.25,4.29581145]
[1744692159556,1.995,130.28,130.25,11.97461145]
[1744692159757,2.03656311,130.28,130.25,12.02922163]
[1744692160756,0.04156311,130.28,130.25,12.02922163]
[1744692161456,0.04156311,130.28,130.26,32.31581145]
[1744692161651,0.04156311,130.28,130.27,4.29581145]
[1744692163147,0.04156311,130.28,130.27,11.97351145]
[1744692166656,0.04156311,130.28,130.27,7.6777]
[1744692166855,0.04156311,130.28,130.27,11.97351145]
[1744692167054,8.47721145,130.32,130.27,11.97351145]
[1744692167260,11.8564,130.32,130.28,4.29581145]
[1744692168262,11.8564,130.32,130.29,0.05059791]
[1744692170262,16.15221145,130.32,130.29,0.05059791]
[1744692176865,7.6754,130.31,130.29,0.05059791]
[1744692177166,11.97121145,130.31,130.29,0.05059791]
[1744692180567,11.97171145,130.3,130.26,28.02]
[1744692180867,4.29581145,130.3,130.26,28.02]
[1744692181069,4.29581145,130.3,130.27,7.6776]
[1744692181471,4.29581145,130.3,130.26,32.31581145]
[1744692181770,0.04979996,130.29,130.28,4.29581145]
[1744692182571,0.04979996,130.29,130.28,11.97251145]
[1744692183367,0.04979996,130.29,130.27,7.73412368]
[1744692183571,0.04979996,130.29,130.27,0.05672368]
[1744692185370,4.34561141,130.29,130.27,0.05672368]
[1744692185773,7.6771,130.28,130.27,0.05672368]
[1744692185973,11.97291145,130.28,130.27,0.05672368]
[1744692194180,0.04979996,130.29,130.27,0.05672368]
[1744692194373,0.04979996,130.29,130.27,4.35253513]
[1744692194571,0.04979996,130.29,130.27,0.05672368]
[1744692194875,4.34561141,130.29,130.27,0.05672368]
[1744692195277,7.6771,130.28,130.27,0.05672368]
[1744692195475,11.97291145,130.28,130.27,0.05672368]
[1744692195781,7.6786,130.26,130.23,39.97581145]
[1744692195974,7.6786,130.26,130.23,35.68]
[1744692196573,7.6786,130.26,130.23,35.73173626]
[1744692196779,7.7367754,130.26,130.23,35.73173626]
[1744692197183,7.7367754,130.26,130.23,28.05173626]
[1744692198776,7.6791,130.25,130.23,28.05173626]
[1744692203089,12.03248685,130.26,130.23,28.05173626]
[1744692204387,0.0581754,130.26,130.24,4.29581145]
[1744692204584,0.0581754,130.26,130.25,4.29581145]
[1744692204983,11.97151145,130.31,130.25,4.29581145]
[1744692205185,11.97151145,130.31,130.27,4.29581145]
[1744692205488,13.97281145,130.32,130.27,4.29581145]
[1744692205683,13.97281145,130.32,130.28,4.29581145]
[1744692206084,0.04914619,130.31,130.29,0.05469264]
[1744692206283,0.04914619,130.31,130.29,4.35050409]
[1744692206990,0.04914619,130.31,130.29,12.02690409]
[1744692207288,0.04914619,130.31,130.3,4.29581145]
[1744692207685,0.04914619,130.31,130.3,11.97171145]
[1744692208085,0.04914619,130.31,130.3,4.29581145]
[1744692209290,3.9952,130.36,130.3,4.29581145]
[1744692209588,4.29581145,130.36,130.33,4.29581145]
[1744692209983,11.96871145,130.36,130.33,4.29581145]
[1744692210385,4.24,130.39,130.35,4.29581145]
[1744692210685,4.29581145,130.41,130.37,4.29581145]
[1744692210894,6.3293,130.44,130.4,4.29581145]
[1744692211089,11.96431145,130.43,130.4,4.29581145]
[1744692211289,10.62511145,130.44,130.41,0.04942744]
[1744692211993,18.29301145,130.44,130.41,0.04942744]
[1744692213798,180.66171258,130.48,130.42,4.29581145]
[1744692213993,4.29581145,130.46,130.42,4.29581145]
[1744692214189,4.29581145,130.46,130.44,0.05745746]
[1744692214994,7.666,130.47,130.44,0.05745746]
[1744692215293,4.29581145,130.45,130.44,0.05745746]
[1744692215593,11.96291145,130.45,130.44,0.05745746]
[1744692216190,11.96251145,130.46,130.44,0.05745746]
[1744692216496,4.29581145,130.46,130.44,0.05745746]
[1744692217396,7.6671,130.45,130.44,0.05745746]
[1744692219696,11.96251145,130.46,130.44,0.05745746]
[1744692219898,4.29581145,130.46,130.44,0.05745746]
[1744692221198,7.6671,130.45,130.44,0.05745746]
[1744692225310,11.96291145,130.45,130.44,0.05745746]
[1744692232914,7.6688,130.43,130.4,32.25581145]
[1744692233108,4.29581145,130.43,130.4,27.96]
[1744692233413,4.29581145,130.45,130.41,4.29581145]
[1744692233813,0.05745746,130.44,130.42,0.05812375]
[1744692234107,0.05745746,130.44,130.42,4.3539352]
[1744692235008,7.72525746,130.44,130.42,4.3539352]
[1744692235211,0.05745746,130.44,130.42,4.3539352]
[1744692236511,4.35326891,130.44,130.42,0.05812375]
[1744692237111,0.05745746,130.44,130.42,0.05812375]
[1744692237713,7.72535746,130.44,130.42,0.05812375]
[1744692237913,0.05745746,130.44,130.42,4.3539352]
[1744692240113,0.05745746,130.44,130.42,12.0224352]
[1744692240517,0.05745746,130.44,130.43,27.94]
[1744692242419,7.72515746,130.44,130.43,27.94]
[1744692243323,0.05745746,130.44,130.43,27.94]
[1744692243526,0.05745746,130.44,130.43,32.23581145]
[1744692243716,4.29581145,130.48,130.43,32.23581145]
[1744692243913,7.6658,130.48,130.45,11.96271145]
[1744692244217,4.29581145,130.48,130.44,4.29581145]
[1744692244519,4.29581145,130.48,130.43,32.23581145]
[1744692244820,7.666,130.47,130.44,0.05639345]
[1744692245322,11.96181145,130.47,130.44,0.05639345]
[1744692246425,7.6667,130.46,130.44,0.05639345]
[1744692247123,11.96201145,130.47,130.44,0.05639345]
[1744692249728,7.6665,130.46,130.44,0.05639345]
[1744692249918,4.29581145,130.47,130.44,0.05639345]
[1744692251324,11.96201145,130.47,130.44,0.05639345]
[1744692253528,4.29581145,130.47,130.44,4.3522049]
[1744692253730,4.29581145,130.49,130.45,11.96281145]
[1744692254026,4.29581145,130.49,130.46,0.04892613]
[1744692254327,11.96091145,130.49,130.46,0.04892613]
[1744692255628,7.6654,130.48,130.46,0.04892613]
[1744692255823,4.29581145,130.47,130.46,0.04892613]
[1744692256528,11.96171145,130.47,130.46,0.04892613]
[1744692257029,7.6659,130.47,130.46,0.04892613]
[1744692257834,11.96141145,130.48,130.46,0.04892613]
[1744692258732,7.6659,130.47,130.46,0.04892613]
[1744692259235,11.96141145,130.48,130.46,0.04892613]
[1744692259432,7.6656,130.48,130.46,0.04892613]
[1744692262740,7.6659,130.47,130.46,0.04892613]
[1744692263135,4.29581145,130.47,130.43,27.94]
[1744692263438,27.94,130.5,130.43,27.94]
[1744692263439,7.6677,130.44,130.43,27.94]
[1744692264533,7.71632613,130.45,130.43,27.94]
[1744692265336,0.04892613,130.45,130.44,4.29581145]
[1744692265542,4.29581145,130.5,130.44,4.29581145]
[1744692265742,4.29581145,130.5,130.46,4.29581145]
[1744692265942,11.96031145,130.5,130.46,39.88221145]
[1744692266344,7.6645,130.5,130.46,39.88221145]
[1744692266643,7.6645,130.5,130.47,0.05542802]
[1744692267145,11.95961145,130.51,130.47,12.01693947]
[1744692267343,10.57861145,130.52,130.48,4.29581145]
[1744692267837,4.29581145,130.52,130.48,4.29581145]
[1744692268045,4.29581145,130.54,130.5,4.29581145]
[1744692268342,4.29581145,130.54,130.51,0.05209036]
[1744692269144,7.6628,130.53,130.51,0.05209036]
[1744692270043,4.29581145,130.54,130.51,0.05209036]
[1744692270246,4.29581145,130.53,130.51,0.05209036]
[1744692270746,11.95861145,130.53,130.51,0.05209036]
[1744692270936,4.29581145,130.53,130.51,0.05209036]
[1744692271139,4.29581145,130.52,130.51,0.05209036]
[1744692271342,11.95881145,130.52,130.51,0.05209036]
[1744692274147,7.663,130.52,130.51,0.05209036]
[1744692274347,11.95881145,130.52,130.51,0.05209036]
[1744692276550,7.6654,130.48,130.46,27.92]
[1744692276750,4.29581145,130.47,130.46,27.92]
[1744692277452,4.29581145,130.48,130.46,27.92]
[1744692277651,4.34754505,130.48,130.46,27.92]
[1744692277855,7.6659,130.47,130.46,27.92]
[1744692279756,7.7173336,130.48,130.46,27.92]
[1744692281461,0.0517336,130.48,130.46,27.92]
[1744692281664,0.0517336,130.48,130.46,32.21581145]
[1744692282662,0.0517336,130.48,130.46,39.88211145]
[1744692282859,4.34754505,130.48,130.46,27.92]
[1744692283262,12.01324505,130.48,130.46,27.92]
[1744692287065,7.6659,130.47,130.46,27.92]
[1744692287257,4.34754505,130.48,130.46,27.92]
[1744692287463,12.01324505,130.48,130.46,27.92]
[1744692289366,7.6659,130.47,130.46,27.92]
[1744692290065,12.01314505,130.48,130.46,27.92]
[1744692291268,7.7173336,130.48,130.46,27.92]
[1744692296266,7.6659,130.47,130.46,27.92]
[1744692297572,7.6665,130.46,130.45,0.0546233]
[1744692297871,4.29581145,130.47,130.45,0.0546233]
[1744692298073,4.34754505,130.48,130.45,0.0546233]
[1744692298574,7.6663,130.47,130.45,0.0546233]
[1744692302681,0.0517336,130.48,130.46,4.29581145]
[1744692302977,4.29581145,130.53,130.47,4.29581145]
[1744692303277,4.29581145,130.53,130.49,4.29581145]
[1744692303479,4.29581145,130.52,130.48,4.29581145]
[1744692303667,4.29581145,130.51,130.47,11.96141145]
[1744692303869,7.6645,130.5,130.48,0.0513263]
[1744692304480,7.6648,130.49,130.48,0.0513263]
[1744692304781,11.96061145,130.49,130.48,0.0513263]
[1744692305577,4.29581145,130.49,130.42,27.92]
[1744692305769,4.29581145,130.46,130.43,4.29581145]
[1744692305969,4.29581145,130.47,130.43,4.29581145]
[1744692306179,11.96211145,130.47,130.43,4.29581145]
[1744692306379,11.96211145,130.47,130.44,7.6674]
[1744692306677,12.01379451,130.47,130.44,7.72067758]
[1744692308480,12.01379451,130.47,130.44,0.05327758]
[1744692309280,7.6668,130.46,130.44,0.05327758]
[1744692309489,4.29581145,130.45,130.44,0.05327758]
[1744692311882,0.05168306,130.47,130.44,0.05327758]
[1744692312082,0.05168306,130.47,130.44,4.34908903]
[1744692312984,7.71768306,130.47,130.44,12.01638903]
[1744692313585,0.05168306,130.47,130.45,7.6669]
[1744692314286,0.05168306,130.47,130.44,12.01658903]
[1744692314287,7.71768306,130.47,130.44,12.01658903]
[1744692315485,4.34749451,130.47,130.44,0.05327758]
[1744692315779,4.29581145,130.45,130.44,0.05327758]
[1744692316787,11.96291145,130.45,130.44,0.05327758]
[1744692319391,4.29581145,130.45,130.44,0.05327758]
[1744692319684,4.29581145,130.46,130.44,0.05327758]
[1744692319887,4.29581145,130.46,130.44,7.72057758]
[1744692320587,0.05168306,130.47,130.44,4.34908903]
[1744692321390,4.34749451,130.47,130.45,7.6667]
[1744692321584,0.05168306,130.47,130.44,4.34908903]
[1744692322091,0.05168306,130.47,130.46,7.6665]
[1744692322285,4.29581145,130.52,130.46,4.29581145]
[1744692322490,4.29581145,130.53,130.49,4.29581145]
[1744692322892,4.29581145,130.55,130.51,4.29581145]
[1744692323090,384.92,130.59,130.52,4.29581145]
[1744692323389,4.29581145,130.56,130.54,7.71146427]
[1744692323585,27.92,130.59,130.54,32.26547572]
[1744692323792,4.29581145,130.57,130.54,27.96966427]
[1744692323983,4.29581145,130.57,130.54,35.63136427]
[1744692324185,4.29581145,130.56,130.54,27.96966427]
[1744692324586,4.29581145,130.57,130.54,32.26547572]
[1744692324990,35.5795,130.59,130.54,32.26547572]
[1744692325290,4.29581145,130.57,130.55,7.6612]
[1744692325589,4.29581145,130.57,130.54,39.92707572]
[1744692327495,4.29581145,130.55,130.54,27.96966427]
[1744692328690,4.29581145,130.55,130.49,27.9]
[1744692328991,6.0045,130.6,130.47,2.1303]
[1744692328992,4.29581145,130.51,130.47,4.29581145]
[1744692329191,4.29581145,130.5,130.46,34.22741145]
[1744692329390,4.29581145,130.48,130.46,27.9]
[1744692329592,4.29581145,130.49,130.46,27.9]
[1744692329789,4.34547572,130.49,130.46,35.61968846]
[1744692330991,7.6656,130.48,130.46,27.95328846]
[1744692331295,4.34547572,130.49,130.46,27.95328846]
[1744692331597,0.04966427,130.49,130.47,7.6658]
[1744692332495,0.04966427,130.49,130.48,7.6653]
[1744692336401,4.29581145,130.52,130.49,7.6646]
[1744692336602,279.77688371,130.8,130.51,4.29581145]
[1744692336799,11.95741145,130.55,130.51,11.95921145]
[1744692337506,11.95741145,130.55,130.52,0.05683408]
[1744692337693,4.29581145,130.53,130.52,0.05683408]
[1744692338096,11.95821145,130.53,130.52,0.05683408]
[1744692339104,7.6624,130.53,130.52,0.05683408]
[1744692342713,14.33859401,130.54,130.52,0.05683408]
[1744692342912,7.662,130.54,130.52,0.05683408]
[1744692343113,34.57659401,130.56,130.52,0.05683408]
[1744692343713,38.64169401,130.6,130.53,27.9]
[1744692344106,38.64169401,130.6,130.55,0.05584835]
[1744692344511,7.6605,130.57,130.55,0.05584835]
[1744692344712,38.64169401,130.6,130.55,0.05584835]
[1744692345111,7.6605,130.57,130.55,0.05584835]
[1744692348022,7.6606,130.56,130.55,0.05584835]
[1744692348317,14.33719401,130.56,130.55,0.05584835]
[1744692348517,6.67659401,130.58,130.55,0.05584835]
[1744692349621,14.33649401,130.58,130.55,7.71664835]
[1744692350723,7.6599,130.58,130.55,7.71664835]
[1744692351119,27.9,130.6,130.55,0.05584835]
[1744692351423,7.6589,130.59,130.55,0.05584835]
[1744692351624,6.67659401,130.59,130.55,0.05584835]
[1744692351824,6.67659401,130.57,130.55,0.05584835]
[1744692353227,7.6606,130.56,130.55,0.05584835]
[1744692358132,7.6596,130.58,130.55,0.05584835]
[1744692358732,7.6592,130.59,130.55,7.71674835]
[1744692359030,27.9,130.6,130.55,0.05584835]
[1744692359231,27.9,130.6,130.55,4.32485615]
[1744692359428,7.6595,130.58,130.55,11.98565615]
[1744692359630,4.2690078,130.58,130.55,0.05584835]
[1744692360433,4.2690078,130.56,130.55,0.05584835]
[1744692360932,11.9296078,130.56,130.55,0.05584835]
[1744692361135,7.6606,130.56,130.55,0.05584835]
[1744692362127,14.33397308,130.57,130.55,0.05584835]
[1744692362331,6.67387308,130.57,130.55,0.05584835]
[1744692362634,7.6606,130.56,130.55,0.05584835]
[1744692367837,14.33447308,130.56,130.55,0.05584835]
[1744692373643,7.6598,130.58,130.55,0.05584835]
[1744692374338,7.6592,130.59,130.55,0.05584835]
[1744692374843,7.6592,130.59,130.55,7.71664835]
[1744692375143,7.6596,130.58,130.55,0.05584835]
[1744692375646,6.67387308,130.6,130.55,0.05584835]
[1744692376043,10.64927308,130.62,130.57,7.66]
[1744692376344,6.67387308,130.62,130.58,0.05027863]
[1744692377043,27.88,130.66,130.59,27.88]
[1744692377246,6.67387308,130.65,130.59,27.88]
[1744692377545,6.67387308,130.65,130.61,0.05906107]
[1744692378042,7.6561,130.64,130.61,0.05906107]
[1744692378245,6.67387308,130.65,130.61,0.05906107]
[1744692378545,7.6565,130.64,130.61,0.05906107]
[1744692378844,6.67387308,130.65,130.61,0.05906107]
[1744692379047,6.67387308,130.63,130.61,0.05906107]
[1744692379845,7.6571,130.62,130.61,0.05906107]
[1744692382651,7.6596,130.58,130.56,27.86]
[1744692383149,6.67387308,130.6,130.56,27.86]
[1744692383650,0.04887598,130.59,130.57,0.05729713]
[1744692384650,14.33387308,130.58,130.57,0.05729713]
[1744692385146,7.6618,130.54,130.53,27.86]
[1744692385351,7.6618,130.54,130.5,35.5239]
[1744692385545,6.67387308,130.55,130.5,27.86]
[1744692386351,7.6628,130.53,130.51,0.05184612]
[1744692395459,7.663,130.52,130.51,0.05184612]
[1744692402864,7.71514857,130.54,130.51,0.05184612]
[1744692403364,4.27178682,130.52,130.51,0.05184612]
[1744692403569,11.93478682,130.52,130.51,0.05184612]
[1744692405173,14.34299147,130.52,130.51,0.05184612]
[1744692408774,7.6656,130.48,130.46,27.86]
[1744692409775,14.34589147,130.47,130.46,27.86]
[1744692409975,14.34589147,130.47,130.46,27.91288791]
[1744692410275,7.71860714,130.48,130.46,27.91288791]
[1744692410773,7.6659,130.47,130.46,27.91288791]
[1744692413578,14.39849861,130.48,130.46,27.91288791]
[1744692415480,6.73289861,130.48,130.46,27.91288791]
[1744692415680,0.05290714,130.48,130.46,27.91288791]
[1744692416081,7.71830714,130.48,130.46,27.91288791]
[1744692417083,14.39829861,130.48,130.46,27.91288791]
[1744692417282,7.6659,130.47,130.46,27.91288791]
[1744692419983,7.6659,130.47,130.46,0.05288791]
[1744692420485,7.6677,130.44,130.43,27.88]
[1744692420679,6.67999147,130.45,130.4,7.6698]
[1744692420882,6.67999147,130.43,130.4,27.88]
[1744692421183,7.6695,130.41,130.4,27.88]
[1744692421382,6.67999147,130.43,130.4,27.88]
[1744692421584,6.73123312,130.43,130.4,27.93742018]
[1744692422084,0.05124165,130.43,130.4,27.93742018]
[1744692422386,0.05124165,130.43,130.4,35.60742018]
[1744692422582,0.05124165,130.43,130.4,27.93742018]
[1744692423685,0.05124165,130.43,130.41,7.6691]
[1744692424784,0.05124165,130.43,130.42,7.6689]
[1744692425688,0.05124165,130.43,130.4,27.93742018]
[1744692426208,0.05124165,130.43,130.4,35.60732018]
[1744692426781,14.34919147,130.42,130.4,27.93742018]
[1744692427274,4.28091063,130.41,130.4,0.05742018]
[1744692427787,0.05124165,130.43,130.4,4.33833081]
[1744692428087,0.05124165,130.43,130.41,35.549]
[1744692428282,4.33215228,130.43,130.41,35.549]
[1744692428485,4.28091063,130.42,130.41,35.549]
[1744692430588,4.28091063,130.42,130.4,0.05742018]
[1744692430787,11.95041063,130.41,130.4,0.05742018]
[1744692432187,4.28091063,130.41,130.4,0.05742018]
[1744692433287,0.05124165,130.43,130.4,4.33833081]
[1744692433491,0.05124165,130.43,130.41,32.16091063]
[1744692435193,0.05124165,130.43,130.42,7.6689]
[1744692440506,0.05124165,130.43,130.41,35.5492]
[1744692447002,0.05124165,130.43,130.41,27.88]
[1744692448202,0.05124165,130.43,130.41,35.5491]
[1744692448606,0.05124165,130.43,130.41,27.88]
[1744692448795,0.05124165,130.43,130.42,7.6689]
[1744692448999,0.05124165,130.43,130.41,27.88]
[1744692449999,0.05124165,130.43,130.4,0.05742018]
[1744692450000,6.68489705,130.42,130.4,0.05742018]
[1744692450205,7.6695,130.41,130.4,0.05742018]
[1744692452708,7.6714,130.38,130.35,27.88]
[1744692453408,7.6719,130.37,130.35,27.88]
[1744692453616,7.72464305,130.37,130.35,27.9350031]
[1744692453804,6.7376401,130.37,130.35,0.0550031]
[1744692454103,7.6724,130.36,130.35,0.0550031]
[1744692454508,7.6742,130.33,130.32,27.88]
[1744692454810,6.68489705,130.33,130.29,27.88]
[1744692455302,6.68489705,130.33,130.27,7.6775]
[1744692455510,6.68489705,130.31,130.26,27.88]
[1744692455710,6.73390951,130.31,130.29,0.05312116]
[1744692456607,14.40930951,130.31,130.29,0.05312116]
[1744692456810,0.04901246,130.31,130.29,0.05312116]
[1744692457106,4.33616497,130.31,130.29,0.05312116]
[1744692458310,12.01186497,130.31,130.29,0.05312116]
[1744692458911,0.04901246,130.31,130.29,0.05312116]
[1744692459107,0.04901246,130.31,130.29,4.34027367]
[1744692459411,0.04901246,130.31,130.29,32.22027367]
[1744692459908,0.04901246,130.31,130.3,11.96305251]
[1744692460214,4.28715251,130.38,130.3,4.28715251]
[1744692460515,11.95875251,130.38,130.34,11.96065251]
[1744692460713,4.28715251,130.38,130.34,11.96065251]
[1744692460908,11.95855251,130.38,130.34,11.96065251]
[1744692461211,0.05812727,130.37,130.35,6.73933535]
[1744692461412,34.56933598,130.42,130.36,27.88]
[1744692461606,5.9454,130.44,130.39,6.68933598]
[1744692461806,1.9839,130.44,130.39,34.58933598]
[1744692462013,0.05534651,130.43,130.39,27.9]
[1744692462317,0.05534651,130.43,130.39,35.5706]
[1744692462318,7.72404651,130.43,130.39,35.5706]
[1744692464117,7.6689,130.42,130.39,35.5706]
[1744692464318,0.05534651,130.43,130.39,35.5706]
[1744692464917,7.72394651,130.43,130.39,35.5706]
[1744692466320,7.72394651,130.43,130.4,7.67]
[1744692466822,0.05534651,130.43,130.4,7.67]
[1744692469720,0.05534651,130.43,130.41,7.6694]
[1744692470014,27.88,130.54,130.42,27.88]
[1744692470325,14.35333598,130.51,130.46,7.6665]
[1744692470525,14.35333598,130.51,130.46,27.88]
[1744692470827,14.35333598,130.51,130.47,7.6658]
[1744692471132,0.05387962,130.5,130.48,0.05763067]
[1744692471625,0.05387962,130.5,130.49,27.88]
[1744692472231,0.05387962,130.5,130.49,35.5446]
[1744692475037,2.1179,130.55,130.49,27.88]
[1744692475231,34.56933598,130.57,130.5,6.68933598]
[1744692475535,7.661,130.56,130.51,7.6632]
[1744692476138,7.71490302,130.55,130.52,0.05213712]
[1744692476436,0.05350302,130.55,130.52,0.05213712]
[1744692477037,7.6619,130.54,130.52,0.05213712]
[1744692477238,6.742839,130.55,130.52,0.05213712]
[1744692477639,7.6618,130.54,130.52,0.05213712]
[1744692478136,6.742839,130.55,130.52,0.05213712]
[1744692479132,7.6624,130.53,130.52,0.05213712]
[1744692479842,14.35173598,130.53,130.52,0.05213712]
[1744692480039,7.6637,130.51,130.49,27.88]
[1744692480840,7.6632,130.52,130.49,27.88]
[1744692481142,0.05717986,130.52,130.49,27.93044567]
[1744692481541,6.68933598,130.51,130.49,0.05044567]
[1744692481737,6.68933598,130.5,130.4,917.76933598]
[1744692481939,7.6677,130.44,130.43,27.86]
[1744692482441,6.68933598,130.46,130.43,27.86]
[1744692482634,34.54933598,130.48,130.43,27.86]
[1744692482837,0.05043055,130.46,130.43,27.91081816]
[1744692483641,0.05043055,130.46,130.44,6.68933598]
[1744692484140,8.84863598,130.52,130.44,6.68933598]
[1744692484348,34.54933598,130.54,130.46,6.68933598]
[1744692484539,6.68933598,130.54,130.47,27.86]
[1744692484738,6.68933598,130.54,130.47,35.5257]
[1744692484939,6.68933598,130.52,130.47,27.86]
[1744692485438,0.05793819,130.51,130.48,0.05009407]
[1744692486143,7.6645,130.5,130.48,0.05009407]
[1744692486543,0.05793819,130.51,130.48,0.05009407]
[1744692486744,7.6648,130.49,130.48,0.05009407]
[1744692491049,41.23867196,130.5,130.44,27.86]
[1744692491239,6.68933598,130.47,130.44,27.86]
[1744692491435,6.68933598,130.45,130.41,27.86]
[1744692491640,2.0037,130.49,130.36,1.9996]
[1744692491641,6.68933598,130.43,130.36,1.9996]
[1744692491838,6.68933598,130.43,130.38,27.86]
[1744692492143,7.6704,130.4,130.38,27.9094801]
[1744692493840,7.6706,130.39,130.38,27.9094801]
[1744692494540,7.6702,130.4,130.38,27.9094801]
[1744692496746,7.71862203,130.41,130.38,27.9094801]
[1744692496946,0.04892203,130.41,130.38,27.9094801]
[1744692498145,7.6702,130.4,130.38,27.9094801]
[1744692498749,7.71852203,130.41,130.38,35.5806801]
[1744692501152,34.56933598,130.47,130.4,6.68933598]
[1744692501349,34.56933598,130.47,130.41,27.88]
[1744692501652,6.68933598,130.47,130.41,27.88]
[1744692502450,0.05101742,130.45,130.43,0.05668961]
[1744692502651,13.42968938,130.45,130.38,27.88]
[1744692502849,6.68933598,130.42,130.38,27.88]
[1744692503452,6.68933598,130.4,130.35,35.5528]
[1744692503653,6.68933598,130.4,130.36,0.05736808]
[1744692503654,0.05807448,130.39,130.36,0.05736808]
[1744692504754,7.6716,130.38,130.36,0.05736808]
[1744692505755,7.72897448,130.39,130.36,0.05736808]
[1744692506851,7.6713,130.38,130.36,0.05736808]
[1744692508153,7.72877448,130.39,130.36,0.05736808]
[1744692508457,0.05807448,130.39,130.36,0.05736808]
[1744692509356,7.6713,130.38,130.36,0.05736808]
[1744692509558,0.05807448,130.39,130.36,0.05736808]
[1744692511159,7.72897448,130.39,130.36,7.72976808]
[1744692511759,7.72897448,130.39,130.36,0.05736808]
[1744692512261,7.6713,130.38,130.36,0.05736808]
[1744692514665,7.6718,130.37,130.36,0.05736808]
[1744692515657,0.05807448,130.39,130.36,0.05736808]
[1744692516063,7.72907448,130.39,130.36,0.05736808]
[1744692516564,7.6712,130.38,130.36,0.05736808]
[1744692516864,0.05807448,130.39,130.36,0.05736808]
[1744692517060,7.6716,130.38,130.36,0.05736808]
[1744692518763,7.6718,130.37,130.36,0.05736808]
[1744692518964,0.05807448,130.39,130.36,0.05736808]
[1744692520068,7.6716,130.38,130.36,0.05736808]
[1744692520467,0.05807448,130.39,130.36,0.05736808]
[1744692520668,7.72897448,130.39,130.36,0.05736808]
[1744692520870,0.05807448,130.39,130.36,0.05736808]
[1744692522165,7.6714,130.38,130.36,0.05736808]
[1744692523170,11.95437921,130.38,130.36,0.05736808]